[Event "Hungarian Youth-ch U16 2022"]
[Site "Eger"]
[Date "2022.07.27"]
[Round "5.1"]
[White "Kocsmar, Akos"]
[Black "Muranyi, Peter"]
[Result "1-0"]
[ECO "A40"]
[WhiteElo "2061"]
[BlackElo "2018"]
[Annotator "TA"]
[PlyCount "79"]
[EventDate "2022.07.21"]
[EventType "tourn"]
[EventCountry "HUN"]
[SourceTitle "playchess.com"]
[Source "ChessBase"]
[SourceQuality "1"]
[TimeControl "40/5400+30:1800+30"]

{[%evp 9,79,27,52,-15,14,0,14,0,0,0,34,31,31,29,47,18,20,26,16,-23,29,16,27,41,56,58,140,138,136,150,185,51,52,63,148,138,149,72,79,79,122,90,133,125,138,125,213,203,280,240,388,294,534,529,536,508,513,512,575,572,750,736,661,295,29974,29975,29981,29982,29979,29980,29982,29983]} 1. d4 {[%emt 0:00:32]} b6 {[%emt 0:01:09]} 2. c4 {[%emt 0:00:27]} e6 {[%emt 0:00:27]} 3. Nc3 {[%emt 0:00:18]} Bb7 {[%emt 0:00:08]} 4. e4 {[%emt 0:00:20]} Bb4 {[%emt 0:00:30]} 5. f3 {[%emt 0:01:45]} f5 {[%emt 0:03:55]} 6. e5 {[%emt 0:05:12] A40: Unusual replies to 1 d4.} ({White should play} 6. exf5 $14 exf5 7. a3 Qe7+ 8. Be2 (8. Qe2 Bxc3+ 9. bxc3 Nc6 $11) 8... Qh4+ 9. Kf1 (9. g3 Bxc3+ 10. bxc3 Qe7 $14) 9... Bxc3 10. bxc3) 6... Nc6 {[%emt 0:03:07] [#] Hoping for ...Qh4+.} 7. Be3 {[%emt 0:03:35] [#]} Qe7 $146 {[%emt 0:14:23]} ({Predecessor:} 7... Nh6 8. Qd2 Nf7 9. f4 O-O 10. Nf3 Ne7 11. Be2 Nh6 12. a3 Bxc3 13. Qxc3 Ng4 {1-0 (53) Li,B (2319)-Szilagyi,N (2084) Zalakaros 2018}) 8. Qd2 {[%emt 0:01:48] The position is equal.} d6 {[%emt 0:06:58]} 9. exd6 {[%emt 0:06:03]} Qxd6 {[%emt 0:02:45]} 10. O-O-O {[%emt 0:00:42]} O-O-O {[%emt 0:00:40]} 11. Nge2 {[%emt 0:03:30]} Na5 {[%emt 0:12:09]} 12. Qd3 {[%emt 0:16:45]} Ba6 {[%emt 0:05:34]} 13. Nb5 {[%emt 0:04:15]} Qd7 {[%emt 0:13:31]} 14. b3 {[%emt 0:01:16]} c6 {[%emt 0:07:24]} (14... Bxb5 $142 15. cxb5 Nf6) 15. Nbc3 $11 {[%emt 0:00:05]} Nf6 {[%emt 0:00:33][%cal Of6d5]} 16. Qc2 {[%emt 0:02:17]} Kb8 {[%emt 0:07:22]} 17. Nf4 {[%emt 0:01:17]} g5 {[%emt 0:02:38]} ({Better is} 17... Bxc3 $14 18. Qxc3 e5) 18. Nd3 $16 {[%emt 0:00:18][%csl LRb4,LRg5]} Ba3+ {[%emt 0:00:05]} 19. Kb1 {[%emt 0:00:12]} f4 {[%emt 0:00:06]} 20. Ne5 {[%emt 0:00:25]} ({White should try} 20. Bd2 $18) 20... Qc7 $1 $14 {[%emt 0:00:22]} 21. Bf2 {[%emt 0:00:27]} Bd6 {[%emt 0:00:17]} (21... c5 $14 22. Nb5 Bxb5 23. cxb5 Bb4) 22. c5 {[%emt 0:05:28]} bxc5 {[%emt 0:03:37]} 23. dxc5 {[%emt 0:03:45] White is more active.} Bxe5 $16 {[%emt 0:00:28]} 24. Bxa6 {[%emt 0:00:02]} Nb7 {[%emt 0:02:29]} 25. b4 {[%emt 0:03:17] Against Qa5} Nd5 {[%emt 0:02:58]} 26. Nxd5 {[%emt 0:01:24]} exd5 {[%emt 0:00:18]} 27. Qa4 {[%emt 0:01:54]} d4 {[%emt 0:03:29]} (27... Rhe8 $16) 28. Rd3 {[%emt 0:01:33][%cal Bd1d3,Bd3a3,Ba3b3][%mdl 32]} Rd7 {[%emt 0:02:16]} 29. Rc1 {[%emt 0:00:22] aiming for Rb3.} Rd5 {[%emt 0:01:55]} (29... Rhd8 $142 30. Re1 Re7) 30. Ra3 {[%emt 0:00:52] Strongly threatening Bc4.} Nd8 $2 {[%emt 0:01:12]} (30... Rhd8 31. Rd1 (31. Bc4 a5 $18) 31... Bg7) 31. b5 $18 {[%emt 0:00:54]} cxb5 {[%emt 0:00:54]} 32. Qxb5+ {[%emt 0:00:01]} Ka8 {[%emt 0:00:18]} 33. Rb3 {[%emt 0:00:29]} Rf8 {[%emt 0:00:58]} 34. Be1 {[%emt 0:00:48][%cal Bf2e1,Be1a5,Ba5d8][%mdl 32] Threatens to win with Ba5.} Rf6 {[%emt 0:00:59]} 35. Ba5 {[%emt 0:00:37]} Qd7 {[%emt 0:01:03]} 36. Qc4 {[%emt 0:01:13]} (36. Bxd8 $142 {Threatening mate with Bb7+.} Qxb5 37. Bxb5 (37. Rxb5 Rxa6 38. Bxg5 Rg6 $11) 37... Rxd8 38. Bd3) 36... d3 $2 {[%emt 0:00:58]} (36... Rxa6 $18 37. Qxa6 Nc6) 37. Bxd8 {[%emt 0:00:41] A strong pair of Bishops. White mates.} d2 {[%emt 0:00:30]} 38. Bb7+ {[%emt 0:01:29]} Qxb7 {[%emt 0:00:29]} 39. Rxb7 {[%emt 0:00:01]} dxc1=Q+ {[%emt 0:00:33]} 40. Kxc1 {[%emt 0:00:00] Weighted Error Value: White=0.38/Black=0.44} 1-0

[Event "Hungarian Youth-ch U16 2022"]
[Site "Eger"]
[Date "2022.07.27"]
[Round "5.2"]
[White "Tran, David"]
[Black "Fule, Simon"]
[Result "1/2-1/2"]
[ECO "C74"]
[WhiteElo "2090"]
[BlackElo "2271"]
[Annotator "TA"]
[PlyCount "28"]
[EventDate "2022.07.21"]
[EventType "tourn"]
[EventCountry "HUN"]
[SourceTitle "playchess.com"]
[Source "ChessBase"]
[SourceQuality "1"]
[TimeControl "40/5400+30:1800+30"]

{[%evp 15,28,61,62,66,66,22,74,59,64,54,94,46,46,46,60]} 1. e4 {[%emt 0:00:33] Lautier,J} e5 {[%emt 0:00:48]} 2. Nf3 {[%emt 0:00:08]} Nc6 {[%emt 0:00:20]} 3. Bb5 {[%emt 0:00:16]} a6 {[%emt 0:00:08]} 4. Ba4 {[%emt 0:00:07]} d6 {[%emt 0:00:06]} 5. c3 {[%emt 0:00:17][%cal Bc2c3,Bc3c4][%mdl 32]} f5 {[%emt 0:00:17]} 6. exf5 {[%emt 0:00:19]} Bxf5 {[%emt 0:00:12]} 7. O-O {[%emt 0:00:35]} Bd3 {[%emt 0:00:27]} 8. Re1 {[%emt 0:00:02]} Be7 {[%emt 0:00:08]} 9. Qb3 {[%emt 0:00:33] C74: Ruy Lopez: Deferred Steinitz: 5 c3 f5.} Rb8 {[%emt 0:00:55]} 10. c4 {[%emt 0:13:34] [#]} b5 $146 {[%emt 0:41:18]} (10... e4 $11 {keeps the balance.}) ({Predecessor:} 10... e4 11. Ng5 Nf6 12. Nc3 O-O 13. Ncxe4 Nxe4 14. Nxe4 Ne5 15. Re3 b5 16. cxb5+ d5 17. Rxd3 Nxd3 18. Qxd3 dxe4 19. Qxe4 {½-½ (44) Topalov,V (2630)-Lautier,J (2655) Linares 1995 CBM 046 [Lautier,J]}) 11. Qxd3 {[%emt 0:06:13]} bxa4 {[%emt 0:00:09]} 12. Qc2 {[%emt 0:01:44]} Nb4 {[%emt 0:07:01]} 13. Qxa4+ {[%emt 0:00:51]} (13. Qd1 $16) 13... Qd7 $14 {[%emt 0:00:09]} 14. Qb3 {[%emt 0:01:06]} c5 {[%emt 0:06:57] Against d4.  Weighted Error Value: White=0.19 (very precise) /Black=0.21 (precise)} 1/2-1/2

[Event "Hungarian Youth-ch U16 2022"]
[Site "Eger"]
[Date "2022.07.27"]
[Round "5.3"]
[White "Borzsei, Andras"]
[Black "Szikszai, Bertalan"]
[Result "0-1"]
[ECO "D85"]
[WhiteElo "2002"]
[BlackElo "2153"]
[Annotator "TA"]
[PlyCount "136"]
[EventDate "2022.07.21"]
[EventType "tourn"]
[EventCountry "HUN"]
[SourceTitle "playchess.com"]
[Source "ChessBase"]
[SourceQuality "1"]
[TimeControl "40/5400+30:1800+30"]

{[%evp 12,136,6,11,5,-7,-9,-11,-3,-7,0,0,-7,-33,-40,-42,0,-37,-40,-63,-64,-80,-77,-92,-92,-91,-60,-81,-75,-121,-68,-80,-89,-80,-82,-107,-58,-59,-81,-75,-66,-208,-110,-226,-90,-265,-154,-159,-147,-175,-175,-163,-146,-266,-264,-249,-264,-264,-243,-235,-157,-200,-197,-176,-77,-140,-100,-131,-123,-273,-150,-157,-168,-235,-217,-221,-232,-216,-222,-216,-180,-197,-184,-162,-104,-163,-155,-154,-147,-206,-193,-189,-189,-262,-225,-280,-172,-444,-328,-356,-334,-637,-629,-1306,-568,-1326,-1306,-29976,-29977,-29977,-29977,-29977,-29978,-29981,-29982,-29982,-29981,-29981,-29982,-29983,-29984,-29984,-29985,-29985,-29986,-29992,-29993]} 1. d4 {[%emt 0:00:42]} Nf6 {[%emt 0:00:39]} 2. c4 {[%emt 0:00:12]} g6 {[%emt 0:00:20]} 3. Nc3 {[%emt 0:00:10]} d5 {[%emt 0:00:10]} 4. cxd5 {[%emt 0:00:08]} Nxd5 {[%emt 0:00:07]} 5. Bd2 {[%emt 0:00:14]} Nb6 {[%emt 0:00:54]} 6. Bg5 {[%emt 0:00:30]} Bg7 {[%emt 0:00:33]} 7. e3 {[%emt 0:00:07]} c5 {[%emt 0:00:21] D85: Exchange Grünfeld: Unusual White 7th moves and lines with 7 Nf3.} 8. dxc5 {[%emt 0:00:14]} Bxc3+ {[%emt 0:00:33]} 9. bxc3 {[%emt 0:00:11]} Qxd1+ {[%emt 0:00:27] The position is equal.} 10. Rxd1 {[%emt 0:00:10]} N6d7 {[%emt 0:00:18]} 11. Bb5 {[%emt 0:00:17]} f6 {[%emt 0:01:21]} 12. Bh4 {[%emt 0:02:44] [#]} a6 $146 {[%emt 0:03:56]} ({Predecessor:} 12... Nc6 13. Rd5 e6 14. Rd6 Ke7 15. Bxc6 bxc6 16. Nf3 Ba6 17. Nd4 Nxc5 18. Rxc6 Rhc8 {1-0 (31) Carow,J (2234)-Krassowizkij,J (2348) Hannover 2012}) 13. Ba4 {[%emt 0:01:21]} Kf8 {[%emt 0:02:58]} 14. Ne2 {[%emt 0:20:31]} Nxc5 {[%emt 0:02:07]} 15. Bc2 {[%emt 0:01:58]} Be6 {[%emt 0:11:45]} 16. Ra1 {[%emt 0:18:48]} Bc4 {[%emt 0:19:29]} 17. Kd2 {[%emt 0:01:04]} Kf7 {[%emt 0:09:12]} 18. e4 {[%emt 0:02:04]} e5 {[%emt 0:05:13]} 19. Nc1 {[%emt 0:12:30]} Nc6 {[%emt 0:16:35]} 20. Nb3 {[%emt 0:02:25]} (20. Ke3 $142) 20... Ne6 {[%emt 0:02:35]} (20... Na4 $17 {aiming for ...Rhd8+.} 21. Nd4 exd4 22. Bxa4 Rac8) 21. Bg3 $15 {[%emt 0:16:33]} h5 {[%emt 0:02:16]} 22. h4 {[%emt 0:02:49]} Rhd8+ {[%emt 0:01:44]} 23. Ke3 {[%emt 0:00:20]} Rac8 {[%emt 0:01:37] 0x0.0019ea8f7fe1dp-1022s more active pieces.} (23... a5 $17 24. Rad1 Rdc8) 24. Rhd1 {[%emt 0:01:04]} Rxd1 {[%emt 0:01:32]} 25. Rxd1 {[%emt 0:00:26]} Ke7 $36 {[%emt 0:00:15][%mdl 2048] Prevents Rd7+. Black has the initiative.} 26. Nd2 {[%emt 0:01:30]} (26. Rb1 $15) 26... Na5 {[%emt 0:02:52]} (26... Bxa2 $19 {[%cal Oc6d4] Strongly threatening ...Ncd4!} 27. Bd3 Na5) 27. Bd3 {[%emt 0:02:57]} (27. Nxc4 $17 Nxc4+ 28. Ke2) 27... b5 {[%emt 0:02:27]} (27... Bxa2 $19 28. Rc1 Bc4 29. Nxc4 Nxc4+ 30. Bxc4 Rxc4) 28. f3 $2 {[%emt 0:04:08]} (28. Bb1 $17 {was necessary.}) 28... Bxd3 {[%emt 0:01:30]} (28... Bxa2 $19 29. Ra1 Rxc3 $1 30. Rxa2 Nc5) 29. Kxd3 $17 {[%emt 0:00:14]} Nc5+ $1 {[%emt 0:01:29]} 30. Kc2 {[%emt 0:00:21]} Na4 {[%emt 0:00:55]} 31. Nb1 {[%emt 0:00:45]} Nc4 {[%emt 0:02:10] Pair of Knights!} 32. Bf2 {[%emt 0:00:20] [#] Against Ne3+} (32. Rc1 $17 {might work better.}) 32... Na3+ $1 $19 {[%emt 0:02:10][%mdl 512]} 33. Nxa3 {[%emt 0:01:57]} Rxc3+ {[%emt 0:00:07]} 34. Kb1 {[%emt 0:00:06][%cal Of2e1] Threatens to win with Be1!} Rxa3 {[%emt 0:00:07][%mdl 4096] Endgame KRB-KRN} 35. Be1 {[%emt 0:00:06] [#] Hoping for Bb4+.} Rc3 $1 {[%emt 0:04:49][%mdl 512]} 36. Rd5 {[%emt 0:01:38]} (36. Rc1 Rxc1+) 36... Rc4 {[%emt 0:00:41]} 37. Rd3 {[%emt 0:02:13]} b4 {[%emt 0:01:44]} (37... Nc5 $19 {and Black stays clearly on top.} 38. Rc3 Rxc3 39. Bxc3 Kd6) 38. a3 {[%emt 0:00:17]} (38. Rd5 $142) 38... bxa3 {[%emt 0:00:34]} 39. Ka2 {[%emt 0:00:38]} Nc5 {[%emt 0:00:39]} 40. Rd2 {[%emt 0:00:00]} (40. Rxa3 $17 {was worth a try.} Kd6 41. Kb2) 40... Rd4 {[%emt 0:00:00]} (40... Rc1 $19 41. Bf2 Nd3 $1 {[%mdl 512]} 42. Kxa3 Nxf2 43. Rxf2 Rh1) 41. Rc2 $17 {[%emt 0:03:14]} Nd3 {[%emt 0:13:45]} 42. Bc3 {[%emt 0:00:14]} (42. Bd2 $142) 42... Rc4 {[%emt 0:02:09]} 43. Kb3 {[%emt 0:00:56]} Rc6 {[%emt 0:00:29]} 44. Kxa3 {[%emt 0:01:12]} Ke6 {[%emt 0:03:29]} 45. Kb3 {[%emt 0:00:39]} Nc5+ {[%emt 0:00:44]} 46. Kb4 {[%emt 0:00:26]} Nb7 {[%emt 0:01:19]} 47. Ra2 {[%emt 0:01:11]} Nd6 {[%emt 0:00:56]} (47... a5+ $19 48. Kb3 Nc5+ 49. Kc2 a4) 48. Be1 {[%emt 0:02:37] [#]} (48. Kb3 $17) 48... f5 $1 $19 {[%emt 0:02:05]} 49. exf5+ {[%emt 0:00:33]} gxf5 {[%emt 0:00:31]} 50. Re2 {[%emt 0:01:31]} (50. Bf2 $17) 50... e4 {[%emt 0:00:59][%cal Be5e4,Be4e3][%mdl 32]} 51. Bg3 {[%emt 0:00:24]} Rc4+ {[%emt 0:03:00]} 52. Ka5 {[%emt 0:01:04]} (52. Kb3 $142 Rd4 53. Ra2) 52... Nb5 {[%emt 0:01:02]} 53. Kxa6 {[%emt 0:00:54]} Nc3 {[%emt 0:01:10]} 54. Re3 {[%emt 0:04:47]} (54. Rc2) 54... Nd5 {[%emt 0:03:24]} 55. Re1 {[%emt 0:00:29]} e3 {[%emt 0:00:48]} 56. Re2 {[%emt 0:13:19] Against Rc2} (56. Kb5 Rc2 57. Ra1) 56... f4 {[%emt 0:00:50]} 57. Be1 {[%emt 0:00:04]} Ke5 {[%emt 0:01:23]} (57... Rc1 $142 {White must now prevent ...Nc3.} 58. g3 Ke5 59. gxf4+ Kxf4) 58. Kb5 {[%emt 0:02:24]} Rc1 {[%emt 0:00:34]} 59. g3 {[%emt 0:01:24]} Nc3+ {[%emt 0:01:03] Black mates.} 60. Bxc3+ {[%emt 0:00:04]} Rxc3 {[%emt 0:00:06] KR-KR} 61. Kb4 {[%emt 0:00:05]} Rc8 {[%emt 0:00:43]} 62. Rg2 {[%emt 0:01:27]} fxg3 {[%emt 0:00:22]} 63. Rxg3 {[%emt 0:00:05]} Kf4 {[%emt 0:00:09]} 64. Rg7 {[%emt 0:00:05]} Re8 {[%emt 0:00:45]} 65. Rg1 {[%emt 0:02:23]} e2 {[%emt 0:00:08]} 66. Re1 {[%emt 0:00:05]} Kxf3 {[%emt 0:00:06]} 67. Kc3 {[%emt 0:00:16]} Kf2 {[%emt 0:00:06]} 68. Kd2 {[%emt 0:00:06]} Rd8+ {[%emt 0:00:04] Weighted Error Value: White=0.70/Black=0.29 (precise)} 0-1

[Event "Hungarian Youth-ch U16 2022"]
[Site "Eger"]
[Date "2022.07.27"]
[Round "5.4"]
[White "Onodi, Tamas"]
[Black "Pasztor, Balazs"]
[Result "0-1"]
[ECO "B22"]
[WhiteElo "2030"]
[BlackElo "2336"]
[Annotator "TA"]
[PlyCount "76"]
[EventDate "2022.07.21"]
[EventType "tourn"]
[EventCountry "HUN"]
[SourceTitle "playchess.com"]
[Source "ChessBase"]
[SourceQuality "1"]
[TimeControl "40/5400+30:1800+30"]

{[%evp 10,76,11,11,11,0,8,0,-9,-32,-17,-13,-22,-24,-8,-41,-20,-23,0,0,0,0,0,0,0,0,0,0,-18,-44,-18,-20,-27,-21,-14,-18,-30,-139,-26,-34,-27,-18,-14,-14,-14,-18,-21,-41,-14,-129,-31,-256,-170,-185,-75,-292,0,-173,0,-301,-286,-290,-294,-989,-975,-945,-922,-29998,-29999]} 1. e4 {[%emt 0:00:37]} c5 {[%emt 0:01:49][%cal Bc7c5,Bc5d4][%mdl 32]} 2. c3 {[%emt 0:00:07]} Nf6 {[%emt 0:00:33]} 3. e5 {[%emt 0:00:02]} Nd5 {[%emt 0:00:10]} 4. d4 {[%emt 0:00:02]} cxd4 {[%emt 0:01:26]} 5. Nf3 {[%emt 0:00:21]} d6 {[%emt 0:02:18]} 6. Bc4 {[%emt 0:19:17]} (6. Nxd4 dxe5 7. Nb5 e6 $15) 6... e6 {[%emt 0:13:37] B22: Sicilian: 2 c3.} 7. Bxd5 {[%emt 0:13:01]} (7. cxd4 {feels hotter.} Be7 8. O-O O-O 9. Qe2) 7... exd5 {[%emt 0:00:08]} 8. exd6 {[%emt 0:01:44]} ({Much weaker is} 8. Qxd4 Nc6 9. Qxd5 dxe5 10. Qxd8+ Kxd8 $15) 8... Bxd6 {[%emt 0:05:32] The position is equal.} 9. Nxd4 {[%emt 0:03:59]} O-O {[%emt 0:01:37]} 10. O-O {[%emt 0:04:09]} Nc6 {[%emt 0:05:19]} 11. Be3 {[%emt 0:09:46]} Qh4 {[%emt 0:11:31][%csl Gd6][%cal Rh4h2] [#]} 12. Nf3 $146 {[%emt 0:03:37]} (12. g3 $5 {[%cal Rg3h4]} Qh3 13. Qb3 $15) ({Predecessor:} 12. g3 Qh3 13. Qf3 Ne7 14. Nd2 Bg4 15. Qg2 Qh5 16. Rfe1 Bh3 17. Qf3 Bg4 18. Qg2 {0-1 (52) Jahncke,G (1886)-Zimmermann,J (2276) Bargteheide 2004}) 12... Qh5 {[%emt 0:02:43]} 13. Nbd2 {[%emt 0:03:19]} Re8 {[%emt 0:06:01]} 14. Re1 {[%emt 0:04:52]} Bd7 {[%emt 0:07:45]} 15. h3 {[%emt 0:03:15]} Rad8 {[%emt 0:01:26]} 16. Nd4 {[%emt 0:01:03]} Qg6 {[%emt 0:03:49]} 17. Qc2 {[%emt 0:04:22]} Qf6 {[%emt 0:05:14]} 18. N2f3 {[%emt 0:01:41] And now Nxc6 would win. Pair of Knights!} h6 {[%emt 0:01:52]} 19. Qb3 {[%emt 0:04:56]} Bc8 {[%emt 0:03:08]} 20. Kf1 {[%emt 0:02:21]} Bc7 {[%emt 0:02:34]} 21. Rad1 {[%emt 0:01:00]} Na5 {[%emt 0:02:52]} 22. Qc2 {[%emt 0:02:29]} Nc4 {[%emt 0:00:15]} 23. Rd3 {[%emt 0:02:48]} (23. Bc1 $11) 23... Ne5 {[%emt 0:07:24] Black is more active.} ({Better is} 23... Qa6 $1 $17 {[%cal Oc4b2]} 24. Bc1 Rxe1+ 25. Kxe1 Qxa2) 24. Nxe5 $11 {[%emt 0:01:45]} Qxe5 {[%emt 0:00:57]} 25. Nf3 {[%emt 0:02:04][%csl LRa7,LRe5] Inhibits Qh2.} Qh5 {[%emt 0:00:43][%cal Oc8h3] White must now prevent ...Bxh3!} 26. Qd1 {[%emt 0:02:34]} b6 {[%emt 0:02:27] Threatening ...Ba6.} 27. Nd4 {[%emt 0:00:12]} Qg6 {[%emt 0:00:46]} 28. Rd2 {[%emt 0:00:29]} Bh2 {[%emt 0:03:32] Strongly threatening ...Ba6+.} 29. Qf3 {[%emt 0:01:10]} (29. Qa4 $11) 29... Re4 {[%emt 0:02:12]} (29... Ba6+ $17 30. Ne2 Rd6) 30. Red1 $2 {[%emt 0:01:17]} (30. Qe2 $15) 30... Rde8 {[%emt 0:00:42] aiming for ...Ba6+.} 31. Ne2 {[%emt 0:00:48]} Bc7 {[%emt 0:01:14]} (31... Ba6 $19 {has better winning chances. ...R8e6 is the strong threat.} 32. g4 Bf4 $1 {[%mdl 512]} 33. Bxf4 Bxe2+ 34. Qxe2 Rxe2 35. Rxe2 Rxe2 36. Kxe2 Qe4+ 37. Be3 Qc4+ 38. Kf3 Qxa2) 32. Nd4 {[%emt 0:02:08] Prevents R8e6.} (32. Rd4 $17 {might work better.}) 32... Bh2 {[%emt 0:00:20]} (32... f5 $142 $1 {[%cal Rf5f4]} 33. Nb5 Bh2 34. Rxd5 f4) 33. Ne2 $19 {[%emt 0:00:18]} Bc7 {[%emt 0:00:10]} (33... Ba6 $142 {Threatens to win with ...R8e6.} 34. g4 Bf4 $1 {[%mdl 512]} 35. Bxf4 Bxe2+ 36. Qxe2 Rxe2 37. Rxe2 Rxe2 38. Kxe2 Qe4+ 39. Be3 Qc4+ 40. Kf3 Qxa2) 34. Nd4 {[%emt 0:00:07] [#] Against R8e6} f5 $1 {[%emt 0:03:00][%cal Bf7f5,Bf5f4][%mdl 32]} 35. Ne2 {[%emt 0:01:15] Prevents f4.} Ba6 {[%emt 0:00:45]} 36. Re1 $2 {[%emt 0:02:37]} (36. Kg1) 36... f4 {[%emt 0:00:41]} 37. Bd4 {[%emt 0:00:03]} Rxe2 {[%emt 0:00:37]} 38. Rexe2 {[%emt 0:00:11]} Qb1+ {[%emt 0:00:20] Weighted Error Value: White=0.70/Black=0.37} 0-1

[Event "Hungarian Youth-ch U16 2022"]
[Site "Eger"]
[Date "2022.07.27"]
[Round "5.5"]
[White "Bodo, Boglarka"]
[Black "Kovacs, Veronika"]
[Result "1/2-1/2"]
[ECO "B10"]
[WhiteElo "1722"]
[BlackElo "1633"]
[Annotator "NA RC COMBH"]
[PlyCount "82"]
[EventDate "2022.07.21"]
[EventType "tourn"]
[EventCountry "HUN"]
[SourceTitle "playchess.com"]
[Source "ChessBase"]
[SourceQuality "1"]
[TimeControl "40/5400+30:1800+30"]

1. e4 {[%emt 0:02:26]} c6 {[%emt 0:00:31]} 2. c4 {[%emt 0:00:09]} d5 {[%emt 0:00:03]} 3. exd5 {[%emt 0:00:19]} cxd5 {[%emt 0:00:02]} 4. cxd5 {[%emt 0:00:39]} Nf6 {[%emt 0:00:03]} 5. Nc3 {[%emt 0:00:00]} Nxd5 {[%emt 0:00:03]} 6. Nf3 {[%emt 0:00:00]} e6 {[%emt 0:00:20]} 7. d4 {[%emt 0:00:14]} Be7 {[%emt 0:00:05]} 8. Bc4 {[%emt 0:00:21]} O-O {[%emt 0:00:58]} 9. O-O {[%emt 0:01:08]} Nc6 {[%emt 0:00:08]} 10. Re1 {[%emt 0:00:43]} Bf6 {[%emt 0:00:14]} 11. Bxd5 {[%emt 0:00:20]} exd5 {[%emt 0:00:03]} 12. h3 {[%emt 0:00:17]} Be6 {[%emt 0:00:54]} 13. Bf4 {[%emt 0:01:17]} Qb6 {[%emt 0:01:59]} 14. Na4 {[%emt 0:00:56]} Qb5 {[%emt 0:10:30]} 15. Nc5 {[%emt 0:00:36]} Nxd4 {[%emt 0:10:16]} 16. Nxd4 {[%emt 0:01:44]} Qxc5 {[%emt 0:00:51]} 17. Nxe6 {[%emt 0:00:08]} fxe6 {[%emt 0:00:38]} 18. Rxe6 {[%emt 0:00:28]} Rad8 {[%emt 0:01:05]} 19. Rc1 {[%emt 0:00:44]} Qb4 {[%emt 0:06:10]} 20. Qg4 {[%emt 0:05:12]} Bxb2 {[%emt 0:12:46]} 21. Rb1 {[%emt 0:06:21]} Rxf4 {[%emt 0:10:05]} 22. Qe2 {[%emt 0:00:14]} Rdf8 {[%emt 0:02:39]} 23. Rxb2 {[%emt 0:01:36]} Qd4 {[%emt 0:05:29]} 24. Re7 {[%emt 0:02:13]} b5 {[%emt 0:04:26]} 25. Rd2 {[%emt 0:01:39]} Qa1+ {[%emt 0:06:06]} 26. Kh2 {[%emt 0:02:18]} Qf6 {[%emt 0:02:09]} 27. Re6 {[%emt 0:02:16]} Qf5 {[%emt 0:02:02]} 28. Re5 {[%emt 0:00:33]} Qf6 {[%emt 0:09:07]} 29. Re6 {[%emt 0:03:29]} Qg5 {[%emt 0:01:34]} 30. Re5 {[%emt 0:01:15]} R4f5 {[%emt 0:00:41]} 31. Rexd5 {[%emt 0:03:07]} Rxd5 {[%emt 0:08:28]} 32. Qe6+ {[%emt 0:00:20]} Kh8 {[%emt 0:00:38]} 33. Qxd5 {[%emt 0:00:47]} Qf4+ {[%emt 0:01:06]} 34. Kg1 {[%emt 0:00:11]} h6 {[%emt 0:01:23]} 35. Qd7 {[%emt 0:03:29]} b4 {[%emt 0:01:33]} 36. Qe7 {[%emt 0:04:21]} a5 {[%emt 0:00:56]} 37. Kh1 {[%emt 0:02:37]} Rc8 {[%emt 0:00:36]} 38. Rd8+ {[%emt 0:00:23]} Rxd8 {[%emt 0:00:15]} 39. Qxd8+ {[%emt 0:00:06]} Kh7 {[%emt 0:00:05]} 40. Qxa5 {[%emt 0:00:00]} Qxf2 {[%emt 0:00:00]} 41. Qxb4 {[%emt 0:00:51]} Qxa2 {[%emt 0:01:06]} 1/2-1/2